[Event "97th Argentine Championship 2022"]
[Site "Barichole"]
[Date "2022.12.06"]
[Round "6.2"]
[White "Gaitan, Juan Manuel"]
[Black "Krysa, Leandro"]
[Result "0-1"]
[ECO "D85"]
[WhiteElo "2347"]
[BlackElo "2524"]
[Annotator "TA"]
[PlyCount "122"]
[EventDate "2022.12.01"]
[EventType "tourn"]
[EventCountry "ARG"]
[SourceTitle "playchess.com"]
[Source "ChessBase"]
[SourceQuality "1"]
[TimeControl "40/5400+30:1800+30"]

{[%evp 19,122,-10,0,-30,17,13,35,41,57,42,66,52,90,101,110,59,74,60,91,108,123,93,152,158,139,143,156,139,138,142,248,240,228,242,232,237,251,235,245,77,65,39,47,52,35,41,35,-198,-211,-211,-199,-199,-199,-236,-236,-236,-199,-229,-150,-229,-229,-228,-214,-217,-218,-230,-230,-251,-250,-341,-266,-251,-230,-230,-230,-4040,-2334,-7870,-6962,-4479,-4429,-29954,-29955,-29957,-5003,-29969,-29970,-29965,-29958,-29971,-29972,-29971,-29973,-29975,-29976,-29976,-29973,-29974,-29973,-29973,-29972,-29970,-29967,-29990,-29991]} 1. d4 {[%emt 0:01:00]} Nf6 {[%emt 0:00:16]} 2. c4 {[%emt 0:00:25]} g6 {[%emt 0:00:13]} 3. Nc3 {[%emt 0:01:25]} d5 {[%emt 0:00:14]} 4. cxd5 {[%emt 0:00:42]} Nxd5 {[%emt 0:00:10]} 5. e4 {[%emt 0:01:11]} Nxc3 {[%emt 0:00:07]} 6. bxc3 {[%emt 0:00:06]} Bg7 {[%emt 0:00:11]} 7. Bb5+ {[%emt 0:00:12]} c6 {[%emt 0:00:17]} 8. Ba4 {[%emt 0:00:12]} O-O {[%emt 0:00:32]} 9. Ne2 {[%emt 0:00:26]} e5 {[%emt 0:05:08]} 10. O-O {[%emt 0:00:19]} Qe7 {[%emt 0:00:06]} 11. Qc2 {[%emt 0:12:18] D85: Exchange Grünfeld: Unusual White 7th moves and lines with 7 Nf3.} Re8 {[%emt 0:18:19]} (11... exd4 $142 12. cxd4 a5) 12. d5 $11 {[%emt 0:08:22]} b5 {[%emt 0:12:57]} 13. Bb3 {[%emt 0:00:15] White is slightly better.} Bb7 {[%emt 0:16:08]} 14. Rd1 {[%emt 0:00:16] [#]} Nd7 $146 {[%emt 0:04:12]} ({Predecessor:} 14... Rd8 15. a4 Na6 16. Ba3 Qh4 17. axb5 cxb5 18. Nc1 Rac8 19. g3 Qf6 20. Nd3 Qf3 {1-0 (28) Anurag,M (2397)-Givon,A (2463) Albena 2015}) 15. d6 {[%emt 0:12:30]} Qf6 {[%emt 0:04:41]} 16. c4 {[%emt 0:08:17]} bxc4 {[%emt 0:07:49]} 17. Bxc4 {[%emt 0:00:15]} (17. Qxc4 $16 {[%cal Oc1g5] aiming for Bg5!} Red8 18. Ba3) 17... Nb6 $14 {[%emt 0:01:00]} 18. Bb3 {[%emt 0:00:20]} c5 {[%emt 0:02:37]} 19. Qxc5 {[%emt 0:10:52] And now Qc7 would win.} Bxe4 {[%emt 0:02:51]} 20. Nc3 {[%emt 0:00:08]} Bb7 {[%emt 0:09:05]} (20... Bxg2 $142 21. d7 (21. Kxg2 e4 $14) 21... Bf3 22. dxe8=R+ (22. dxe8=Q+ Rxe8 23. Qc7 Rc8 $16) 22... Rxe8) 21. Qc7 $16 {[%emt 0:02:04]} Rab8 {[%emt 0:01:27]} 22. d7 $36 {[%emt 0:02:56][%mdl 2048] Prevents Rec8. White is really pushing.} Red8 {[%emt 0:01:28]} 23. Rd6 {[%emt 0:01:43] Against Qc6} Qe7 {[%emt 0:05:23]} 24. Be3 {[%emt 0:10:42]} Na8 {[%emt 0:01:07]} (24... Nxd7 $2 25. Rad1 (25. Bxa7 Rbc8 $15) 25... Rdc8 26. Qxd7 $18) (24... Ba8 $16) 25. Qc5 $18 {[%emt 0:00:12]} Rxd7 {[%emt 0:01:13]} 26. Rxd7 {[%emt 0:00:52]} Qxd7 {[%emt 0:00:02]} 27. Qxa7 {[%emt 0:00:14]} Rc8 {[%emt 0:02:58]} 28. Rd1 {[%emt 0:00:39]} Qc7 {[%emt 0:01:04]} 29. Nb5 $2 {[%emt 0:00:36]} (29. a4 $18) 29... Qc6 $16 {[%emt 0:00:20][%csl Gb7,LRb5,LRg2][%cal Rc6g2] [#] Against h3} 30. Bxf7+ $1 {[%emt 0:02:48]} Kh8 $1 {[%emt 0:01:47][%csl Gb7][%cal Rc6g2][%mdl 64]} 31. Bd5 {[%emt 0:00:08]} Qc2 {[%emt 0:00:10][%cal Rc2d1]} 32. Bb3 {[%emt 0:00:06]} Qc6 {[%emt 0:00:13][%csl Gb7,LRb5,LRg2][%cal Rc6g2] [#]} 33. Rd5 $2 {[%emt 0:00:07] [#]} (33. Qxb7 $1 $14 {keeps the upper hand.} Qxb7 34. Nd6) 33... Nb6 $1 $19 {[%emt 0:01:45][%mdl 576]} 34. Qxb6 {[%emt 0:05:07]} Qxb6 {[%emt 0:00:15]} 35. Bxb6 {[%emt 0:00:13]} Bxd5 {[%emt 0:00:09]} 36. Nc7 {[%emt 0:00:42]} Bxb3 {[%emt 0:00:06]} 37. axb3 {[%emt 0:00:07][%mdl 4096] Endgame KRB-KBN} Rd8 {[%emt 0:00:58][%cal Rd8d1]} 38. Kf1 {[%emt 0:01:00]} Rd1+ {[%emt 0:00:27]} 39. Ke2 {[%emt 0:00:09]} Rb1 {[%emt 0:00:04]} 40. Ne6 {[%emt 0:00:00]} Rb2+ {[%emt 0:00:00]} 41. Kf1 {[%emt 0:01:03]} Rxb3 {[%emt 0:14:09]} 42. Bd8 {[%emt 0:00:09]} h6 {[%emt 0:08:22]} 43. Nxg7 {[%emt 0:08:00]} Kxg7 {[%emt 0:00:06] KR-KB} 44. Ba5 {[%emt 0:00:05]} Rb1+ {[%emt 0:02:35]} 45. Ke2 {[%emt 0:00:05]} Rg1 {[%emt 0:00:53]} 46. Kf3 {[%emt 0:00:11]} Kf6 {[%emt 0:02:53]} 47. g4 $2 {[%emt 0:01:36]} (47. h3) 47... e4+ {[%emt 0:02:45]} 48. Kxe4 {[%emt 0:00:07]} Rxg4+ {[%emt 0:00:26]} 49. Kf3 {[%emt 0:00:06]} Kf5 {[%emt 0:00:15] Strongly threatening ...g5.} 50. Bd2 {[%emt 0:00:28]} g5 {[%emt 0:01:17]} 51. Be3 {[%emt 0:00:42]} h5 {[%emt 0:00:30][%cal Bh6h5,Bh5h4,Bh4h3][%mdl 32] ( -> ...Rg1)} 52. h3 {[%emt 0:01:01] [#]} Rg1 $1 {[%emt 0:00:10] Black mates.} 53. Bb6 {[%emt 0:00:09]} h4 {[%emt 0:00:56]} 54. Bc7 {[%emt 0:00:32]} g4+ {[%emt 0:00:45]} 55. hxg4+ {[%emt 0:00:04]} Rxg4 {[%emt 0:00:02]} 56. Bh2 {[%emt 0:02:12]} h3 {[%emt 0:01:01]} 57. Bg3 {[%emt 0:01:26]} Rg6 {[%emt 0:00:09]} 58. Bh2 {[%emt 0:00:07]} Rg2 {[%emt 0:00:16]} 59. Bg3 {[%emt 0:00:02]} Ke6 {[%emt 0:00:17]} 60. Bb8 {[%emt 0:00:45]} Kd5 {[%emt 0:00:12]} 61. Ba7 {[%emt 0:00:33]} Rg8 {[%emt 0:00:16] Never resign too early!   Weighted Error Value: White=0.69/Black=0.08 (flawless)} 0-1

[Event "97th Argentine Championship 2022"]
[Site "Barichole"]
[Date "2022.12.05"]
[Round "6.3"]
[White "Flores, Diego"]
[Black "Mareco, Sandro"]
[Result "1/2-1/2"]
[ECO "E48"]
[WhiteElo "2547"]
[BlackElo "2619"]
[Annotator "TA"]
[PlyCount "62"]
[EventDate "2022.12.01"]
[EventType "tourn"]
[EventCountry "ARG"]
[SourceTitle "playchess.com"]
[Source "ChessBase"]
[SourceQuality "1"]
[TimeControl "40/5400+30:1800+30"]

{[%evp 11,62,17,1,-9,-10,-8,0,-5,1,-6,0,-17,8,10,11,14,11,5,31,37,52,52,66,50,51,72,67,64,108,86,103,95,98,67,58,16,20,0,0,0,0,-73,-33,-18,-24,-42,15,-8,-9,-35,16,0,0]} 1. c4 {[%emt 0:00:47]} e6 {[%emt 0:00:04]} 2. d4 {[%emt 0:00:58]} d5 {[%emt 0:00:04]} 3. Nc3 {[%emt 0:00:45]} Bb4 {[%emt 0:00:05]} 4. e3 {[%emt 0:01:37]} Nf6 {[%emt 0:01:14]} 5. cxd5 {[%emt 0:03:11]} exd5 {[%emt 0:00:06]} 6. Bd3 {[%emt 0:00:21]} O-O {[%emt 0:01:03]} 7. a3 {[%emt 0:01:22] E48: Nimzo-Indian: Rubinstein: 5 Bd3 d5 including 6 Ne2, but excluding 6 a3.} Bd6 {[%emt 0:00:09]} 8. Qc2 {[%emt 0:02:02]} b6 {[%emt 0:07:44][%cal Bb7b6,Bb6c5,Bc5c4][%mdl 32]} 9. Nf3 {[%emt 0:30:38] [#]} c5 $146 {[%emt 0:08:48]} ({Predecessor:} 9... Bb7 10. Nb5 Re8 11. Nxd6 Qxd6 12. O-O Nbd7 13. Bd2 Ne4 14. b4 a6 15. Bc3 Re6 {½-½ (40) Lo,R (2198)-Yoos,J (2381) Vancouver 2013}) 10. dxc5 {[%emt 0:05:39]} bxc5 {[%emt 0:00:06]} 11. e4 {[%emt 0:11:28]} c4 {[%emt 0:20:40]} (11... Re8 $5 {[%cal Rd5e4]} 12. Bg5 Bb7 13. Bxf6 Qxf6 $11) 12. Be2 {[%emt 0:00:34] Threatening e5.} Nxe4 {[%emt 0:01:04]} 13. Nxd5 {[%emt 0:02:14]} Qa5+ {[%emt 0:02:21]} 14. Nc3 {[%emt 0:04:04]} Bb7 {[%emt 0:03:02]} 15. O-O {[%emt 0:05:15]} Nf6 {[%emt 0:25:22]} 16. Rd1 {[%emt 0:04:38]} (16. Bxc4 Bxf3 17. gxf3 Qh5 $11) 16... Bc7 {[%emt 0:00:04]} 17. Nd4 {[%emt 0:02:12][%cal Bf3d4,Bd4b5,Bb5d6][%mdl 32]} (17. Bxc4 Bxf3 18. gxf3 Qh5 $17) (17. Qa4 {simplifies} Qxa4 18. Nxa4 Nbd7 19. Be3) 17... Nc6 {[%emt 0:09:25][%cal Bb8c6,Bc6e5,Be5c4][%mdl 32]} 18. Ndb5 {[%emt 0:10:53]} (18. Bxc4 $2 Qh5 19. Nf3 Na5 $19) 18... Ne5 {[%emt 0:02:56]} 19. Bg5 {[%emt 0:01:44]} Bd8 {[%emt 0:15:43]} 20. Nd6 {[%emt 0:01:20]} (20. Qf5 {simplifies} a6 21. Qxe5 axb5 22. Qxb5 Ba6 23. Qxa5 Bxa5 24. Bxf6 gxf6 25. Rab1) 20... Bc6 {[%emt 0:00:00]} 21. Bf4 {[%emt 0:01:46] White has more active pieces. The black rooks are badly placed.} (21. Bxc4 $2 {[#] is the wrong capture.} Nf3+ $1 {[%mdl 512]} 22. gxf3 Qxg5+ 23. Kf1 Bxf3 $19) (21. Nxc4 $6 Nxc4 22. Bxf6 Bxf6 $11) 21... Bc7 {[%emt 0:00:00]} 22. Bg3 {[%emt 0:01:12]} ({Much worse is} 22. Nxc4 Nxc4 23. b4 (23. Bxc7 Qxc7 24. Bxc4 Bxg2 $11) 23... Nxa3 $11) 22... Qc5 {[%emt 0:00:00]} 23. Nxc4 {[%emt 0:01:35]} Nxc4 {[%emt 0:00:00]} 24. Bxc7 {[%emt 0:00:05]} (24. b4 $5 {[%cal Rb4c5]} Nxa3 25. Qc1 $11) 24... Bxg2 $1 {[%emt 0:00:00][%mdl 64] [#] White must now prevent ...Bb7.} 25. Bg3 {[%emt 0:00:40] This pair of bishops is nice.} Bb7 {[%emt 0:00:00] And now ...Qc6 would win.} 26. Ne4 {[%emt 0:02:01]} Bxe4 {[%emt 0:00:00]} 27. Qxc4 {[%emt 0:00:05]} Qf5 {[%emt 0:00:00]} 28. Qb5 {[%emt 0:01:01]} Qh3 {[%emt 0:00:00]} (28... Qg6 $15) 29. Bf1 {[%emt 0:01:02]} (29. f3 $5 {[%cal Rf3e4]} a6 30. Qg5 $11) 29... Qg4 {[%emt 0:00:00] ( -> ...Qf3)} 30. Be2 {[%emt 0:00:16] Inhibits Qf3.} Qh3 {[%emt 0:00:46]} ({Black should try} 30... Qg6 $15) 31. Bf1 {[%emt 0:00:34]} (31. f3 $5 {[%cal Rf3e4]} a6 32. Qg5 $11) 31... Qg4 {[%emt 0:00:07] Weighted Error Value: White=0.16 (very precise) /Black=0.15 (very precise)} 1/2-1/2

[Event "97th Argentine Championship 2022"]
[Site "Barichole"]
[Date "2022.12.05"]
[Round "6.4"]
[White "Sorin, Ariel"]
[Black "Pichot, Alan"]
[Result "0-1"]
[ECO "D48"]
[WhiteElo "2363"]
[BlackElo "2637"]
[Annotator "TA"]
[PlyCount "62"]
[EventDate "2022.12.01"]
[EventType "tourn"]
[EventCountry "ARG"]
[SourceTitle "playchess.com"]
[Source "ChessBase"]
[SourceQuality "1"]
[TimeControl "40/5400+30:1800+30"]

{[%evp 21,62,-15,-17,-14,-12,-17,-7,-31,-20,-27,0,-99,-98,-123,-115,-93,-117,-160,-54,-54,-50,-50,0,0,2,0,8,8,37,35,32,35,66,-224,-214,-214,-212,-786,-770,-741,-720,-665,-660]} 1. d4 {[%emt 0:00:01]} d5 {[%emt 0:02:43]} 2. c4 {[%emt 0:00:09]} e6 {[%emt 0:00:29]} 3. Nc3 {[%emt 0:00:06]} c6 {[%emt 0:00:13]} 4. e3 {[%emt 0:04:42]} Nd7 {[%emt 0:00:39]} 5. Nf3 {[%emt 0:01:24]} Ngf6 {[%emt 0:00:33]} 6. Bd3 {[%emt 0:01:06]} dxc4 {[%emt 0:00:21]} 7. Bxc4 {[%emt 0:00:06]} b5 {[%emt 0:00:07]} 8. Bd3 {[%emt 0:05:10]} a6 {[%emt 0:00:16]} 9. O-O {[%emt 0:12:39]} c5 {[%emt 0:09:21]} 10. Qe2 {[%emt 0:03:39]} Bb7 {[%emt 0:01:50]} 11. Rd1 {[%emt 0:00:06]} Qb8 {[%emt 0:10:24]} 12. Bc2 {[%emt 0:04:14] D48: Semi-Slav: Meran System: 7...b5 8 Bd3 a6.} Bd6 {[%emt 0:03:29]} 13. h3 {[%emt 0:02:37]} (13. dxc5 {simplifies} Bxc5 14. b3 Bd6 15. h3) 13... O-O {[%emt 0:02:44]} (13... cxd4 {simplifies} 14. exd4 O-O 15. a3 Qc7) 14. Ng5 {[%emt 0:03:58] [#] The position is equal.} (14. dxc5 {simplifies} Nxc5 15. a3 Ncd7 16. Bd2) 14... Be7 $146 {[%emt 0:10:30]} ({Predecessor:} 14... Qc7 15. Nce4 Bh2+ 16. Kh1 h6 17. Nf3 Bxe4 18. Nxh2 Rac8 19. a4 cxd4 20. Bxe4 Nxe4 21. exd4 Qc2 {0-1 (49) Fernandez,M (2228)-Flores,D (2625) Rio Grande 2018}) 15. dxc5 {[%emt 0:04:43][%cal Og5h7]} Nxc5 {[%emt 0:10:37]} 16. Bd2 {[%emt 0:53:50]} (16. e4 $11 Nfd7 17. e5 Bxg5 18. Bxg5 Qxe5 19. Qxe5 (19. Qh5 $2 h6 $19) 19... Nxe5 20. b4) 16... b4 $17 {[%emt 0:08:33]} 17. Na4 {[%emt 0:00:00]} Nxa4 {[%emt 0:06:10]} 18. Bxa4 {[%emt 0:00:00]} Qe5 {[%emt 0:00:09][%csl LRb2,LRg5]} 19. f4 {[%emt 0:00:00]} Qf5 {[%emt 0:06:07]} (19... Qxb2 $17 {Threatens to win with ...h6.} 20. Bb3 h6) 20. Rac1 $15 {[%emt 0:00:00]} Rac8 {[%emt 0:00:57] Against Rc7} 21. Nf3 {[%emt 0:00:00]} Bc5 {[%emt 0:04:28]} (21... Qa5 $15 22. Rxc8 Rxc8) 22. Ne5 $1 $11 {[%emt 0:00:00][%cal Oc1c5]} Rfd8 {[%emt 0:02:43]} (22... Qxf4 $2 {[#]} 23. Rxc5 $1 {[%mdl 512]} Qe4 24. Nd3 $18) 23. Kh2 {[%emt 0:00:00] Hoping for g4.} h5 {[%emt 0:08:05]} 24. Bc2 {[%emt 0:00:00]} Be4 {[%emt 0:00:20]} 25. Bxe4 {[%emt 0:00:00]} Qxe4 {[%emt 0:00:18]} 26. Qxa6 {[%emt 0:00:00][%cal Od2b4]} Ra8 {[%emt 0:00:45]} 27. Qc6 {[%emt 0:00:00][%mdl 8192] [#] This costs White the game.} (27. Qe2 $1 $14 {keeps the upper hand.} Rxd2 28. Rxd2 (28. Qxd2 $2 {loses.} Bxe3 29. Qe1 Qxf4+ 30. Qg3 Bxc1 $19) 28... Bxe3 29. Rc4 Bxf4+ 30. g3 Qxe5 31. Rxf4 (31. gxf4 Qxe2+ 32. Rxe2 g6 $14) 31... Qxe2+ 32. Rxe2) 27... Rxd2 $1 $19 {[%emt 0:00:39][%mdl 576]} 28. Rxd2 {[%emt 0:00:00]} Bxe3 {[%emt 0:03:06] Chess con chili.} 29. Re2 {[%emt 0:00:00]} (29. Qxe4 Nxe4 30. Rdc2 Bxf4+ 31. Kg1 Rxa2 32. Re1) 29... Bxf4+ {[%emt 0:00:13][%mdl 64] Discovered Attack, Double Attack. Black is clearly winning.} 30. Kh1 {[%emt 0:00:00]} Qxe2 {[%emt 0:00:53]} 31. Qxa8+ {[%emt 0:00:00]} Kh7 {[%emt 0:08:18] Weighted Error Value: White=0.58/Black=0.14 (very precise)} 0-1

[Event "97th Argentine Championship 2022"]
[Site "Barichole"]
[Date "2022.12.05"]
[Round "6.5"]
[White "Valerga, Diego"]
[Black "Fiorito, Joaquin"]
[Result "1/2-1/2"]
[ECO "E51"]
[WhiteElo "2438"]
[BlackElo "2344"]
[Annotator "TA"]
[PlyCount "62"]
[EventDate "2022.12.01"]
[EventType "tourn"]
[EventCountry "ARG"]
[SourceTitle "playchess.com"]
[Source "ChessBase"]
[SourceQuality "1"]
[TimeControl "40/5400+30:1800+30"]

{[%evp 13,62,0,8,0,0,0,11,0,2,-8,0,-12,0,-18,-18,-8,-12,-8,0,-10,0,-12,-13,-13,-8,-14,-9,-20,-15,-25,-16,-30,0,0,0,0,0,0,0,0,0,0,0,0,0,0,0,0,0,0,0]} 1. d4 {[%emt 0:00:08]} Nf6 {[%emt 0:00:14]} 2. Nf3 {[%emt 0:00:56]} d5 {[%emt 1:31:16]} 3. c4 {[%emt 0:00:06]} e6 {[%emt 0:00:00]} 4. Nc3 {[%emt 0:00:07]} Bb4 {[%emt 0:00:00]} 5. e3 {[%emt 0:01:10]} O-O {[%emt 0:00:00]} 6. Bd2 {[%emt 0:00:08]} b6 {[%emt 0:00:00]} 7. Rc1 {[%emt 0:01:23]} Bb7 {[%emt 0:00:00]} 8. cxd5 {[%emt 0:00:44] E51: Nimzo-Indian: Rubinstein: 4...0-0 5 Nf3 d5.} exd5 {[%emt 0:00:00]} 9. Bd3 {[%emt 0:00:09]} a6 {[%emt 0:00:00]} 10. O-O {[%emt 0:05:00]} Nbd7 {[%emt 0:00:00]} 11. Qc2 {[%emt 0:17:30]} Bd6 {[%emt 0:00:00]} 12. e4 {[%emt 0:17:14]} dxe4 {[%emt 0:00:00]} 13. Nxe4 {[%emt 0:00:06]} Bxe4 {[%emt 0:00:00]} 14. Bxe4 {[%emt 0:00:06]} Nxe4 {[%emt 0:00:00]} 15. Qxe4 {[%emt 0:00:07]} Nf6 {[%emt 0:00:00]} 16. Qc6 {[%emt 0:00:13]} Qe8 {[%emt 0:00:00] [#]} 17. Qc4 $146 {[%emt 0:04:41]} ({Predecessor:} 17. Ne5 Qxc6 18. Rxc6 Nd5 19. Rfc1 f6 20. Nd3 Rfe8 21. Re1 Rxe1+ 22. Nxe1 Re8 23. Kf1 {0-1 (69) Aguilar,P-Williams,A Haifa 1976}) 17... Qb5 {[%emt 0:00:00]} 18. b3 {[%emt 0:00:18]} Rfe8 {[%emt 0:00:00]} (18... Rac8 {is more complex.} 19. Rfe1 Rfe8 20. Ne5 Bxe5 21. Rxe5 Rxe5 22. dxe5 Qxe5 23. Bc3 Qg5) 19. Rfe1 {[%emt 0:02:55]} h6 {[%emt 0:00:00]} (19... Qxc4 {simplifies} 20. bxc4 Ne4 21. Be3 Rad8) 20. Rxe8+ {[%emt 0:06:28]} (20. Ne5 {keeps more tension.} Bxe5 21. dxe5 Rxe5 22. Rxe5 Qxe5 23. Bc3) 20... Rxe8 {[%emt 0:00:00]} 21. Re1 {[%emt 0:00:33]} Rxe1+ {[%emt 0:00:00]} 22. Bxe1 {[%emt 0:00:07]} Qxc4 {[%emt 0:00:00]} 23. bxc4 $11 {[%emt 0:00:07][%mdl 4096] Endgame KBN-KBN. The position is equal.} c5 {[%emt 0:00:00]} 24. dxc5 {[%emt 0:11:53]} Bxc5 {[%emt 0:00:00]} 25. Kf1 {[%emt 0:00:06]} Ne4 {[%emt 0:00:00]} 26. Ke2 {[%emt 0:02:03]} f6 {[%emt 0:00:00]} 27. Nh4 {[%emt 0:01:57]} Kf7 {[%emt 0:00:00]} 28. Nf5 {[%emt 0:03:02]} h5 {[%emt 0:00:00]} 29. f3 {[%emt 0:00:27]} Nd6 {[%emt 0:00:00]} 30. Nxd6+ {[%emt 0:00:07]} Bxd6 {[%emt 0:00:00]} 31. h3 {[%emt 0:01:04]} Ke6 {[%emt 0:00:00] A balanced but interesting game.   Weighted Error Value: White=0.04 (flawless) /Black=0.04 (flawless)} 1/2-1/2

[Event "97th Argentine Championship 2022"]
[Site "Barichole"]
[Date "2022.12.05"]
[Round "6.6"]
[White "Acosta, Pablo Ismael"]
[Black "Paveto, Kevin"]
[Result "1-0"]
[ECO "A48"]
[WhiteElo "2461"]
[BlackElo "2431"]
[Annotator "TA"]
[PlyCount "65"]
[EventDate "2022.12.01"]
[EventType "tourn"]
[EventCountry "ARG"]
[SourceTitle "playchess.com"]
[Source "ChessBase"]
[SourceQuality "1"]
[TimeControl "40/5400+30:1800+30"]

{[%evp 21,65,8,65,60,65,66,76,70,81,79,94,90,145,104,147,140,242,231,269,268,255,272,271,248,356,356,356,246,246,265,481,477,445,419,605,601,525,404,525,531,520,517,481,461,1103,1078]} 1. d4 {[%emt 0:02:29]} Nf6 {[%emt 0:00:11]} 2. Nf3 {[%emt 0:00:09]} g6 {[%emt 0:00:09]} 3. Bg5 {[%emt 0:00:14]} Bg7 {[%emt 0:01:14]} 4. Nbd2 {[%emt 0:00:17]} O-O {[%emt 0:02:20]} 5. c3 {[%emt 0:00:55]} d6 {[%emt 0:00:16]} 6. e4 {[%emt 0:00:05]} c5 {[%emt 0:02:34]} 7. dxc5 {[%emt 0:00:23]} dxc5 {[%emt 0:00:02]} 8. Bc4 {[%emt 0:00:07]} Nc6 {[%emt 0:00:36]} 9. O-O {[%emt 0:00:16]} Qc7 {[%emt 0:00:29]} 10. Qe2 $1 {[%emt 0:00:17] 10.Qe2 is better than 10.Re1.} h6 {[%emt 0:08:36]} 11. Bxf6 {[%emt 0:00:54]} Bxf6 {[%emt 0:04:31]} (11... exf6 $11 12. Rfd1 Re8) 12. Qe3 $14 {[%emt 0:00:57][%csl LRc5,LRh6] A48: 1 d4 Nf6 2 Nf3 g6: Torre, London and Colle Systems.} g5 {[%emt 0:08:48]} 13. Qxc5 {[%emt 0:10:38] [#]} Rd8 $146 {[%emt 0:05:16]} ({Predecessor:} 13... b6 14. Qe3 g4 15. Ne1 Ne5 16. Bd5 Ba6 17. Bxa8 Bg5 18. Qd4 Rxa8 19. f4 gxf3 20. Nexf3 {0-1 (49) Ledger,A (2423)-Jones,G (2549) Liverpool 2008}) 14. h3 {[%emt 0:12:46] White is better.} e6 {[%emt 0:09:15]} 15. Bb5 {[%emt 0:11:53]} a6 {[%emt 0:03:59]} 16. Bxc6 {[%emt 0:02:31]} bxc6 {[%emt 0:00:02]} (16... Qxc6 $142 17. Qxc6 bxc6) 17. Rad1 {[%emt 0:06:29]} Be7 {[%emt 0:22:06]} 18. Qe5 $36 {[%emt 0:06:17][%mdl 2048] White is in control.} Qd7 {[%emt 0:03:29]} (18... Ra7 $16 19. Nc4 c5 20. Rxd8+ Qxd8) 19. Nc4 $18 {[%emt 0:11:42][%cal Bd2c4,Bc4e3,Be3g4,Bg4h6][%mdl 32]} Qxd1 {[%emt 0:00:22]} 20. Rxd1 {[%emt 0:00:06]} Rxd1+ {[%emt 0:00:04]} 21. Kh2 {[%emt 0:00:05] Nd4 is the strong threat.} Bd7 {[%emt 0:03:20]} 22. g3 {[%emt 0:02:06]} Be8 {[%emt 0:01:36]} (22... c5 {might work better.}) 23. Ne3 {[%emt 0:02:45] Pair of Knights!} Rd3 {[%emt 0:01:52]} 24. Ne1 {[%emt 0:02:11]} Rd2 {[%emt 0:08:04]} 25. Ng4 {[%emt 0:01:03]} Rxb2 $2 {[%emt 0:01:13] [#]} (25... Kh7 {was worth a try.} 26. c4 Bf8) 26. Nxh6+ {[%emt 0:09:03]} Kh7 {[%emt 0:00:08]} 27. Ng4 {[%emt 0:00:22]} Rab8 {[%emt 0:06:26]} (27... Rb5 $142) 28. c4 {[%emt 0:00:53]} R8b7 {[%emt 0:01:48]} 29. Nd3 {[%emt 0:09:09]} Rxa2 {[%emt 0:02:25]} 30. Nf6+ {[%emt 0:01:34] White is clearly winning.} Bxf6 {[%emt 0:00:01]} 31. Qxf6 {[%emt 0:00:06]} Re2 {[%emt 0:02:57]} 32. Qxg5 {[%emt 0:02:31]} f6 {[%emt 0:01:42]} (32... f5 $142 33. Nc5 Rxf2+ 34. Kg1 Rfb2 35. Nxb7 (35. Nxe6 Rc2 $14) 35... Rxb7 36. exf5 exf5 37. Qxf5+ Kg8) 33. Qh4+ {[%emt 0:00:24] White took control after the opening.   Weighted Error Value: White=0.16 (very precise) /Black=0.63} 1-0

[Event "97th Argentine Championship 2022"]
[Site "Barichole"]
[Date "2022.12.06"]
[Round "7.1"]
[White "Krysa, Leandro"]
[Black "Acosta, Pablo Ismael"]
[Result "1/2-1/2"]
[ECO "D66"]
[WhiteElo "2524"]
[BlackElo "2461"]
[Annotator "TA"]
[PlyCount "61"]
[EventDate "2022.12.01"]
[EventType "tourn"]
[EventCountry "ARG"]
[SourceTitle "playchess.com"]
[Source "ChessBase"]
[SourceQuality "1"]
[TimeControl "40/5400+30:1800+30"]

{[%evp 26,61,27,13,44,0,0,0,0,0,64,83,95,96,101,94,93,83,88,0,0,0,0,0,0,0,0,0,0,0,0,0,0,0,0,0,0,0]} 1. d4 {[%emt 0:00:06]} d5 {[%emt 0:01:02]} 2. c4 {[%emt 0:00:37]} c6 {[%emt 0:00:08]} 3. Nf3 {[%emt 0:01:12]} Nf6 {[%emt 0:00:08]} 4. Nc3 {[%emt 0:01:12]} e6 {[%emt 0:00:08]} 5. Bg5 {[%emt 0:00:34]} Nbd7 {[%emt 0:00:56]} 6. e3 {[%emt 0:00:39]} h6 {[%emt 0:00:05]} 7. Bh4 {[%emt 0:00:30]} Be7 {[%emt 0:00:14]} 8. Bd3 {[%emt 0:00:55]} O-O {[%emt 0:01:03]} 9. O-O {[%emt 0:00:35]} dxc4 {[%emt 0:03:05]} 10. Bxc4 {[%emt 0:00:22]} b5 {[%emt 0:00:07]} 11. Bd3 {[%emt 0:00:43]} a6 {[%emt 0:02:53]} 12. Bxf6 {[%emt 0:04:57]} Bxf6 {[%emt 0:14:20]} 13. Ne4 {[%emt 0:17:11]} Be7 {[%emt 0:06:42]} 14. Rc1 {[%emt 0:10:02]} Bb7 {[%emt 0:05:37] D66: Queen's Gambit Declined: Classical: Main Line (7 Rc1 c6 8 Bd3).} 15. Ne5 {[%emt 0:19:45]} Nxe5 {[%emt 0:12:37]} 16. dxe5 {[%emt 0:00:05]} Qd5 {[%emt 0:05:04] [#]} 17. Bb1 $146 {[%emt 0:01:37] [#] Strongly threatening Qc2.} ({Predecessor:} 17. f4 Rfd8 18. Bb1 Qxd1 19. Rfxd1 f6 20. Nd6 Bxd6 21. exd6 Rd7 22. Be4 Rc8 23. Rc5 {1-0 (62) Grigorchuk,S (2235)-Romanenkov,A (2229) Durham 2007}) 17... Qxd1 {[%emt 0:17:08]} (17... Qxe5 $2 18. Qd7 $18) (17... Rad8 $11) 18. Rfxd1 $14 {[%emt 0:00:51] Black must now prevent Rd7.} Rfd8 {[%emt 0:00:30] Against Rd7} 19. Nd6 {[%emt 0:13:10] Against Rac8} Bxd6 {[%emt 0:00:29]} 20. exd6 {[%emt 0:00:22]} Rd7 {[%emt 0:00:19]} 21. Be4 {[%emt 0:01:28]} Rc8 {[%emt 0:00:20]} 22. f4 {[%emt 0:09:01] White is more active.} (22. b4 $16) 22... f5 $11 {[%emt 0:05:02] The position is equal.} 23. Bf3 {[%emt 0:00:28] Rc5 is the strong threat.} c5 {[%emt 0:01:18]} 24. Bxb7 {[%emt 0:04:21]} Rxb7 {[%emt 0:00:19][%mdl 4096] Endgame KRR-KRR} 25. d7 {[%emt 0:00:55]} Rd8 {[%emt 0:00:09]} 26. Rxc5 {[%emt 0:00:23] [#] And now Rc8 would win.} Rbxd7 {[%emt 0:00:15]} 27. Rxd7 {[%emt 0:00:15]} Rxd7 {[%emt 0:00:06]} 28. Rc2 {[%emt 0:01:10]} Kf7 {[%emt 0:00:13]} 29. Kf2 {[%emt 0:00:05]} Kf6 {[%emt 0:00:14]} 30. Kf3 {[%emt 0:00:17]} g5 {[%emt 0:01:22]} 31. h3 {[%emt 0:12:12] Weighted Error Value: White=0.11 (very precise) /Black=0.08 (flawless)} 1/2-1/2